[Event "*** Titled Tuesday Blitz"]
[Site "Chess.com"]
[Date "2018.06.05"]
[Round "6"]
[White "Leo_C"]
[Black "nitpicker"]
[Result "0-1"]
[WhiteElo "2179"]
[BlackElo "2032"]
[TimeControl "180+2"]
[EndTime "14:29:19 PDT"]
[Termination "nitpicker won by resignation"]

1. d4 {[%clk 0:03:01.9]} 1... Nf6 {[%clk 0:02:58.8]} 2. c4 {[%clk 0:03:02.3]}
2... e6 {[%clk 0:02:58]} 3. Nc3 {[%clk 0:03:02.5]} 3... Bb4 {[%clk 0:02:57.8]}
4. Qc2 {[%clk 0:03:03.6]} 4... c5 {[%clk 0:02:56.4]} 5. dxc5 {[%clk 0:03:03.9]}
5... Bxc5 {[%clk 0:02:56.8]} 6. Bf4 {[%clk 0:03:01.7]} 6... Qb6 {[%clk
0:02:53.7]} 7. e3 {[%clk 0:03:01.1]} 7... a6 {[%clk 0:02:41.1]} 8. h3 {[%clk
0:02:55]} 8... Be7 {[%clk 0:02:40.1]} 9. Nf3 {[%clk 0:02:55.2]} 9... d6 {[%clk
0:02:41.1]} 10. Be2 {[%clk 0:02:51.9]} 10... Qc7 {[%clk 0:02:38.7]} 11. O-O
{[%clk 0:02:51.7]} 11... b6 {[%clk 0:02:35.6]} 12. Rfd1 {[%clk 0:02:51.9]} 12...
Nbd7 {[%clk 0:02:33.7]} 13. b4 {[%clk 0:02:38.1]} 13... Bb7 {[%clk 0:02:29.6]}
14. Rac1 {[%clk 0:02:36]} 14... Rc8 {[%clk 0:02:30.3]} 15. a4 {[%clk 0:02:27.9]}
15... O-O {[%clk 0:02:29.3]} 16. Qd2 {[%clk 0:02:15.5]} 16... Ne5 {[%clk
0:02:24.1]} 17. Nxe5 {[%clk 0:02:12.3]} 17... dxe5 {[%clk 0:02:26]} 18. Bg3
{[%clk 0:02:07.8]} 18... Bxb4 {[%clk 0:02:26.5]} 19. Rb1 {[%clk 0:02:07.5]}
19... Bc5 {[%clk 0:02:22.4]} 20. Qb2 {[%clk 0:02:02.7]} 20... Rfd8 {[%clk
0:02:13.6]} 21. Rxd8+ {[%clk 0:01:59.2]} 21... Rxd8 {[%clk 0:02:13.8]} 22. a5
{[%clk 0:02:00.1]} 22... Ne4 {[%clk 0:02:03.7]} 23. axb6 {[%clk 0:01:57]} 23...
Qe7 {[%clk 0:01:39.6]} 24. Bxe5 {[%clk 0:01:49.2]} 24... Rd2 {[%clk 0:01:36.5]}
25. Qa1 {[%clk 0:01:21.4]} 25... Qg5 {[%clk 0:01:30.8]} 26. Bf4 {[%clk
0:01:06.3]} 26... Qg6 {[%clk 0:01:20]} 27. Bf1 {[%clk 0:00:48.6]} 27... h6
{[%clk 0:01:03.1]} 28. Nxe4 {[%clk 0:00:46.3]} 28... Bxe4 {[%clk 0:01:01.7]} 29.
Rb2 {[%clk 0:00:46.2]} 29... Rxb2 {[%clk 0:00:51.5]} 30. Qxb2 {[%clk 0:00:47.2]}
30... Bb7 {[%clk 0:00:52.5]} 31. Qb3 {[%clk 0:00:30.6]} 31... Qe4 {[%clk
0:00:52.2]} 32. Qd3 {[%clk 0:00:29.6]} 32... Qxd3 {[%clk 0:00:50.9]} 33. Bxd3
{[%clk 0:00:30.6]} 33... Bxb6 {[%clk 0:00:52.4]} 34. Kf1 {[%clk 0:00:28.8]}
34... f6 {[%clk 0:00:51.9]} 35. f3 {[%clk 0:00:28.8]} 35... e5 {[%clk
0:00:50.8]} 36. Bg3 {[%clk 0:00:28.9]} 36... Bxe3 {[%clk 0:00:51.7]} 37. Bf2
{[%clk 0:00:29.9]} 37... Bxf2 {[%clk 0:00:50.9]} 38. Kxf2 {[%clk 0:00:31.2]}
38... Bc6 {[%clk 0:00:52]} 39. Ke3 {[%clk 0:00:30.9]} 39... Kf8 {[%clk 0:00:51]}
40. c5 {[%clk 0:00:31.1]} 40... a5 {[%clk 0:00:49.2]} 41. Kd2 {[%clk 0:00:32.4]}
41... Ke7 {[%clk 0:00:47.6]} 42. Kc2 {[%clk 0:00:33.6]} 42... Ke6 {[%clk
0:00:48.4]} 43. Bc4+ {[%clk 0:00:34.3]} 43... Bd5 {[%clk 0:00:48.7]} 44. Bb5
{[%clk 0:00:34.3]} 44... f5 {[%clk 0:00:47.4]} 45. Kb2 {[%clk 0:00:34.9]} 45...
g5 {[%clk 0:00:47.9]} 46. Ka3 {[%clk 0:00:35.6]} 46... e4 {[%clk 0:00:48]} 47.
fxe4 {[%clk 0:00:35.9]} 47... Bxe4 {[%clk 0:00:49]} 48. g3 {[%clk 0:00:35.5]}
48... Bg2 {[%clk 0:00:47.8]} 49. h4 {[%clk 0:00:35.9]} 49... gxh4 {[%clk
0:00:46.1]} 50. gxh4 {[%clk 0:00:36.7]} 50... Kd5 {[%clk 0:00:41.6]} 51. Ka4
{[%clk 0:00:34.7]} 51... Kxc5 {[%clk 0:00:42.2]} 52. Kxa5 {[%clk 0:00:35.9]}
52... f4 {[%clk 0:00:43.5]} 53. Ka4 {[%clk 0:00:35.7]} 53... f3 {[%clk
0:00:41.6]} 54. Bd3 {[%clk 0:00:36.7]} 54... h5 {[%clk 0:00:38.9]} 55. Kb3
{[%clk 0:00:36.6]} 55... f2 {[%clk 0:00:40.2]} 56. Kc2 {[%clk 0:00:36.7]} 56...
f1=Q {[%clk 0:00:41.3]} 57. Bxf1 {[%clk 0:00:37.7]} 57... Bxf1 {[%clk
0:00:42.9]} 58. Kd2 {[%clk 0:00:39.5]} 58... Bh3 {[%clk 0:00:43.8]} 59. Ke3
{[%clk 0:00:40.5]} 59... Bg4 {[%clk 0:00:44.8]} 60. Kf2 {[%clk 0:00:41.8]} 60...
Kd4 {[%clk 0:00:46]} 61. Kg3 {[%clk 0:00:41.2]} 61... Ke3 {[%clk 0:00:46.9]} 62.
Kg2 {[%clk 0:00:42.4]} 62... Kf4 {[%clk 0:00:48.1]} 63. Kh2 {[%clk 0:00:43.6]}
63... Kf3 {[%clk 0:00:47.3]} 64. Kh1 {[%clk 0:00:44.3]} 64... Kg3 {[%clk
0:00:48.5]} 65. Kg1 {[%clk 0:00:46.2]} 65... Kxh4 {[%clk 0:00:49.9]} 66. Kh1
{[%clk 0:00:48.1]} 66... Kg3 {[%clk 0:00:50.6]} 67. Kg1 {[%clk 0:00:50]} 67...
Bf3 {[%clk 0:00:51.4]} 68. Kf1 {[%clk 0:00:50.7]} 68... h4 {[%clk 0:00:52.6]}
69. Kg1 {[%clk 0:00:52.2]} 69... h3 {[%clk 0:00:53.9]} 70. Kf1 {[%clk
0:00:53.7]} 70... h2 {[%clk 0:00:55.1]} 71. Ke1 {[%clk 0:00:54.5]} 71... h1=Q+
{[%clk 0:00:56.4]} 72. Kd2 {[%clk 0:00:55.8]} 72... Qd1+ {[%clk 0:00:57.2]} 73.
Ke3 {[%clk 0:00:56.7]} 73... Qe2+ {[%clk 0:00:58.2]} 74. Kd4 {[%clk 0:00:57.9]}
74... Kf4 {[%clk 0:00:58.5]} 75. Kc5 {[%clk 0:00:58.8]} 0-1

[Event "*** Titled Tuesday Blitz"]
[Site "Chess.com"]
[Date "2018.06.05"]
[Round "6"]
[White "Blitzstream"]
[Black "Kubas1010"]
[Result "1-0"]
[WhiteElo "2435"]
[BlackElo "2379"]
[TimeControl "180+2"]
[EndTime "14:29:21 PDT"]
[Termination "Blitzstream won by resignation"]

1. Nc3 {[%clk 0:03:01.9]} 1... e5 {[%clk 0:02:59.5]} 2. d4 {[%clk 0:03:00.1]}
2... exd4 {[%clk 0:03:00.1]} 3. Qxd4 {[%clk 0:03:02]} 3... Nc6 {[%clk 0:03:01]}
4. Qa4 {[%clk 0:03:03.1]} 4... d5 {[%clk 0:02:57.8]} 5. Nf3 {[%clk 0:03:01.3]}
5... Nf6 {[%clk 0:02:55.1]} 6. Bg5 {[%clk 0:03:01.8]} 6... h6 {[%clk 0:02:54.3]}
7. Bxf6 {[%clk 0:02:49.4]} 7... Qxf6 {[%clk 0:02:56.2]} 8. O-O-O {[%clk
0:02:50.7]} 8... Bd6 {[%clk 0:02:48.5]} 9. Nxd5 {[%clk 0:02:49.4]} 9... Qg6
{[%clk 0:02:43.6]} 10. e3 {[%clk 0:02:43.3]} 10... O-O {[%clk 0:02:42.3]} 11.
Bd3 {[%clk 0:02:31.2]} 11... Bf5 {[%clk 0:02:35]} 12. Nh4 {[%clk 0:02:29.1]}
12... Qg4 {[%clk 0:02:33.4]} 13. Qxg4 {[%clk 0:02:10.1]} 13... Bxg4 {[%clk
0:02:35.3]} 14. f3 {[%clk 0:02:03.6]} 14... Be6 {[%clk 0:02:35.9]} 15. Nc3
{[%clk 0:02:03.9]} 15... g6 {[%clk 0:02:12.1]} 16. g3 {[%clk 0:02:04]} 16... Ne5
{[%clk 0:02:03.2]} 17. Ng2 {[%clk 0:02:02.5]} 17... Nxf3 {[%clk 0:01:50.6]} 18.
Be4 {[%clk 0:02:01.4]} 18... Ne5 {[%clk 0:01:48.2]} 19. Bxb7 {[%clk 0:02:01.2]}
19... Rab8 {[%clk 0:01:49.1]} 20. Bd5 {[%clk 0:01:57.4]} 20... Bg4 {[%clk
0:01:48.4]} 21. Rd4 {[%clk 0:01:50.3]} 21... Rfd8 {[%clk 0:01:43.1]} 22. Rf1
{[%clk 0:01:42.5]} 22... Kg7 {[%clk 0:01:34.9]} 23. Bb3 {[%clk 0:00:59.1]} 23...
Bh3 {[%clk 0:01:22.5]} 24. Rf2 {[%clk 0:00:58.2]} 24... Ng4 {[%clk 0:01:14.9]}
25. Rxf7+ {[%clk 0:00:58.9]} 25... Kh8 {[%clk 0:01:15.3]} 26. Nh4 {[%clk
0:00:54.3]} 26... Ne5 {[%clk 0:01:13.2]} 27. Rf2 {[%clk 0:00:44.9]} 27... g5
{[%clk 0:01:10.5]} 28. Nf5 {[%clk 0:00:43.4]} 28... Rf8 {[%clk 0:01:09.4]} 29.
Rxd6 {[%clk 0:00:18.4]} 29... cxd6 {[%clk 0:01:02.4]} 30. e4 {[%clk 0:00:19.7]}
30... Ng4 {[%clk 0:00:50.2]} 31. Rd2 {[%clk 0:00:19.4]} 31... Rbd8 {[%clk
0:00:47.3]} 32. Nd5 {[%clk 0:00:19.2]} 32... Nf6 {[%clk 0:00:47.2]} 33. Nde7
{[%clk 0:00:19.9]} 33... Bxf5 {[%clk 0:00:47]} 34. exf5 {[%clk 0:00:19.5]} 34...
Kg7 {[%clk 0:00:46]} 35. Nc6 {[%clk 0:00:17.3]} 35... Rd7 {[%clk 0:00:44.8]} 36.
Nd4 {[%clk 0:00:18.1]} 36... Re8 {[%clk 0:00:41.2]} 37. Ne6+ {[%clk 0:00:17.9]}
37... Kh7 {[%clk 0:00:41.9]} 38. Ba4 {[%clk 0:00:18.8]} 38... g4 {[%clk
0:00:39.4]} 39. Bxd7 {[%clk 0:00:19]} 39... Nxd7 {[%clk 0:00:41.3]} 40. Rxd6
{[%clk 0:00:20.3]} 40... Ne5 {[%clk 0:00:42.6]} 41. Ra6 {[%clk 0:00:20.3]} 41...
Re7 {[%clk 0:00:43.3]} 42. b4 {[%clk 0:00:21.2]} 42... Nf3 {[%clk 0:00:43.5]}
43. b5 {[%clk 0:00:21.1]} 43... Nxh2 {[%clk 0:00:44.3]} 44. a4 {[%clk
0:00:22.2]} 44... Nf1 {[%clk 0:00:45.1]} 45. a5 {[%clk 0:00:23.7]} 45... Nxg3
{[%clk 0:00:45.4]} 46. b6 {[%clk 0:00:25.3]} 46... axb6 {[%clk 0:00:46]} 47.
axb6 {[%clk 0:00:27.2]} 47... Nxf5 {[%clk 0:00:38.7]} 48. Ra7 {[%clk 0:00:28.4]}
48... g3 {[%clk 0:00:40.1]} 49. Nf4 {[%clk 0:00:25.9]} 49... h5 {[%clk
0:00:34.8]} 50. b7 {[%clk 0:00:26.3]} 50... Rxb7 {[%clk 0:00:20]} 51. Rxb7+
{[%clk 0:00:28.2]} 51... Kh6 {[%clk 0:00:21.8]} 52. Nh3 {[%clk 0:00:29.6]} 52...
h4 {[%clk 0:00:22]} 53. Kd2 {[%clk 0:00:29.5]} 53... Kh5 {[%clk 0:00:23.1]} 54.
Rb4 {[%clk 0:00:30]} 54... g2 {[%clk 0:00:20.7]} 55. Ke2 {[%clk 0:00:29.5]}
55... Ng3+ {[%clk 0:00:11.7]} 56. Kf2 {[%clk 0:00:29.7]} 1-0

[Event "*** Titled Tuesday Blitz"]
[Site "Chess.com"]
[Date "2018.06.05"]
[Round "6"]
[White "Maitreia"]
[Black "bugsbunny444"]
[Result "0-1"]
[WhiteElo "2543"]
[BlackElo "2349"]
[TimeControl "180+2"]
[EndTime "14:29:23 PDT"]
[Termination "bugsbunny444 won by resignation"]

1. c4 {[%clk 0:03:01.9]} 1... b6 {[%clk 0:03:00.5]} 2. Nf3 {[%clk 0:03:02.4]}
2... Bb7 {[%clk 0:03:02]} 3. g3 {[%clk 0:03:04.3]} 3... Bxf3 {[%clk 0:02:59.5]}
4. exf3 {[%clk 0:03:05.1]} 4... c5 {[%clk 0:03:01.2]} 5. d4 {[%clk 0:03:06.6]}
5... Nc6 {[%clk 0:03:02.4]} 6. d5 {[%clk 0:03:06.6]} 6... Nd4 {[%clk 0:03:03.4]}
7. Be3 {[%clk 0:03:07.8]} 7... Nf5 {[%clk 0:03:04.1]} 8. Bd2 {[%clk 0:03:06.2]}
8... g6 {[%clk 0:02:35.8]} 9. Bc3 {[%clk 0:03:06.4]} 9... Bg7 {[%clk 0:02:36.9]}
10. Bxg7 {[%clk 0:03:00.6]} 10... Nxg7 {[%clk 0:02:38.8]} 11. Bd3 {[%clk
0:03:02.1]} 11... Nh6 {[%clk 0:02:26.5]} 12. g4 {[%clk 0:02:58.8]} 12... f6
{[%clk 0:02:11.5]} 13. Nc3 {[%clk 0:02:56.6]} 13... O-O {[%clk 0:02:02.5]} 14.
h4 {[%clk 0:02:51.2]} 14... d6 {[%clk 0:01:42.5]} 15. h5 {[%clk 0:02:51.6]}
15... g5 {[%clk 0:01:40.4]} 16. Qe2 {[%clk 0:02:49.4]} 16... Qd7 {[%clk
0:01:34.6]} 17. Rg1 {[%clk 0:02:43.6]} 17... e5 {[%clk 0:01:21.5]} 18. dxe6
{[%clk 0:02:43.5]} 18... Nxe6 {[%clk 0:01:21.7]} 19. Be4 {[%clk 0:02:41.9]}
19... Rae8 {[%clk 0:01:14.3]} 20. O-O-O {[%clk 0:02:37.1]} 20... Nd4 {[%clk
0:00:58.3]} 21. Qd3 {[%clk 0:02:27.1]} 21... Kh8 {[%clk 0:00:37.8]} 22. Rge1
{[%clk 0:02:25.9]} 22... Nf7 {[%clk 0:00:38.7]} 23. Bf5 {[%clk 0:02:10.6]} 23...
Nxf5 {[%clk 0:00:20.8]} 24. Rxe8 {[%clk 0:02:11]} 24... Qxe8 {[%clk 0:00:16.2]}
25. gxf5 {[%clk 0:02:11.8]} 25... Qe5 {[%clk 0:00:13]} 26. Nd5 {[%clk
0:02:10.5]} 26... Nh6 {[%clk 0:00:12.3]} 27. Rd2 {[%clk 0:02:08.4]} 27... Qxf5
{[%clk 0:00:09.3]} 28. Qa3 {[%clk 0:01:46.7]} 28... Rf7 {[%clk 0:00:10.5]} 29.
Re2 {[%clk 0:01:43.9]} 29... Kg7 {[%clk 0:00:08.9]} 30. Qc3 {[%clk 0:01:27.2]}
30... Ng8 {[%clk 0:00:09.6]} 31. a4 {[%clk 0:01:21.8]} 31... Qh3 {[%clk
0:00:07.6]} 32. Re8 {[%clk 0:01:06]} 32... Qh1+ {[%clk 0:00:04.4]} 33. Kc2
{[%clk 0:01:06.2]} 33... Qxh5 {[%clk 0:00:05.8]} 34. Ne3 {[%clk 0:01:04.3]}
34... Qg6+ {[%clk 0:00:06.3]} 35. Kb3 {[%clk 0:01:05]} 35... Re7 {[%clk
0:00:04.5]} 36. Rd8 {[%clk 0:01:01.4]} 36... Nh6 {[%clk 0:00:03.8]} 37. Rxd6
{[%clk 0:00:59.7]} 37... Nf5 {[%clk 0:00:04.5]} 38. Rd8 {[%clk 0:00:52.1]} 38...
Nxe3 {[%clk 0:00:02.3]} 39. fxe3 {[%clk 0:00:54]} 39... h5 {[%clk 0:00:03.3]}
40. Qd2 {[%clk 0:00:53.3]} 40... h4 {[%clk 0:00:03.9]} 41. Qd5 {[%clk
0:00:54.3]} 41... Qf7 {[%clk 0:00:03.1]} 42. Qd3 {[%clk 0:00:49]} 42... Qg6
{[%clk 0:00:04.1]} 43. e4 {[%clk 0:00:50.2]} 43... Qf7 {[%clk 0:00:04.5]} 44.
Qf1 {[%clk 0:00:45.2]} 44... Qe6 {[%clk 0:00:05.6]} 45. Ka3 {[%clk 0:00:31.1]}
45... Rd7 {[%clk 0:00:06.8]} 46. Ra8 {[%clk 0:00:29.4]} 46... Qd6 {[%clk
0:00:08.2]} 47. Qh3 {[%clk 0:00:24]} 47... Qd3+ {[%clk 0:00:06.6]} 48. b3 {[%clk
0:00:25.5]} 48... Qd2 {[%clk 0:00:05.1]} 49. Qf1 {[%clk 0:00:14.4]} 49... Qb4+
{[%clk 0:00:05.5]} 50. Kb2 {[%clk 0:00:15.9]} 50... Rd2+ {[%clk 0:00:06.3]} 51.
Ka1 {[%clk 0:00:16]} 51... Qa3+ {[%clk 0:00:07.3]} 0-1

[Event "*** Titled Tuesday Blitz"]
[Site "Chess.com"]
[Date "2018.06.05"]
[Round "6"]
[White "jacky72"]
[Black "W_Amadeus"]
[Result "0-1"]
[WhiteElo "2628"]
[BlackElo "2530"]
[TimeControl "180+2"]
[EndTime "14:29:29 PDT"]
[Termination "W_Amadeus won by resignation"]

1. d4 {[%clk 0:03:01.9]} 1... d5 {[%clk 0:02:58.2]} 2. c4 {[%clk 0:03:01.8]}
2... e6 {[%clk 0:02:59.3]} 3. Nc3 {[%clk 0:02:59.3]} 3... c6 {[%clk 0:03:00.4]}
4. Nf3 {[%clk 0:02:59.2]} 4... Nf6 {[%clk 0:03:01]} 5. Bg5 {[%clk 0:02:58.4]}
5... h6 {[%clk 0:03:01.6]} 6. Bxf6 {[%clk 0:02:57.6]} 6... Qxf6 {[%clk
0:03:03.5]} 7. e3 {[%clk 0:02:59.5]} 7... Nd7 {[%clk 0:03:03.1]} 8. Bd3 {[%clk
0:02:57.9]} 8... g6 {[%clk 0:03:02.9]} 9. O-O {[%clk 0:02:59.2]} 9... Bg7 {[%clk
0:03:03.2]} 10. Rc1 {[%clk 0:02:58.8]} 10... dxc4 {[%clk 0:02:35.9]} 11. Bxc4
{[%clk 0:02:58.9]} 11... O-O {[%clk 0:02:35.9]} 12. Qe2 {[%clk 0:02:58.1]} 12...
a6 {[%clk 0:01:58.1]} 13. Bb3 {[%clk 0:02:55.8]} 13... Qe7 {[%clk 0:01:53.6]}
14. e4 {[%clk 0:02:56.3]} 14... b5 {[%clk 0:01:46.1]} 15. Rfd1 {[%clk
0:02:55.6]} 15... Bb7 {[%clk 0:01:41.6]} 16. e5 {[%clk 0:02:56.5]} 16... c5
{[%clk 0:01:39]} 17. Ne4 {[%clk 0:02:51.6]} 17... Bxe4 {[%clk 0:01:01]} 18. Qxe4
{[%clk 0:02:52.1]} 18... c4 {[%clk 0:01:02.3]} 19. Bc2 {[%clk 0:02:52.1]} 19...
Nb6 {[%clk 0:01:03.3]} 20. h4 {[%clk 0:02:45.9]} 20... h5 {[%clk 0:01:03.5]} 21.
Ng5 {[%clk 0:02:45]} 21... Bh6 {[%clk 0:01:00.9]} 22. f4 {[%clk 0:02:45.8]}
22... Nd5 {[%clk 0:00:58]} 23. Kh1 {[%clk 0:02:40.2]} 23... Rac8 {[%clk
0:00:53]} 24. g4 {[%clk 0:02:40.8]} 24... hxg4 {[%clk 0:00:50.2]} 25. Rg1 {[%clk
0:02:42.2]} 25... c3 {[%clk 0:00:38.2]} 26. b3 {[%clk 0:02:42.9]} 26... Bxg5
{[%clk 0:00:38.4]} 27. fxg5 {[%clk 0:02:39.4]} 27... Kg7 {[%clk 0:00:38.5]} 28.
Rxg4 {[%clk 0:02:38.6]} 28... Rh8 {[%clk 0:00:39.3]} 29. Kg1 {[%clk 0:02:38.3]}
29... Rc7 {[%clk 0:00:34]} 30. Rg2 {[%clk 0:02:38.6]} 30... Nb4 {[%clk 0:00:30]}
31. Rf1 {[%clk 0:02:31.3]} 31... Nd5 {[%clk 0:00:21.3]} 32. Rf3 {[%clk
0:02:28.9]} 32... Kg8 {[%clk 0:00:18.4]} 33. Rh3 {[%clk 0:02:29.6]} 33... Kf8
{[%clk 0:00:18.1]} 34. h5 {[%clk 0:02:30.8]} 34... Rxh5 {[%clk 0:00:13]} 35.
Rxh5 {[%clk 0:02:31.5]} 35... gxh5 {[%clk 0:00:14.2]} 36. g6 {[%clk 0:02:31.1]}
36... fxg6 {[%clk 0:00:14.4]} 37. Qxg6 {[%clk 0:02:30.2]} 37... Qf7 {[%clk
0:00:13.3]} 38. Rf2 {[%clk 0:02:25.6]} 38... Nf4 {[%clk 0:00:05.6]} 39. Qh6+
{[%clk 0:02:26.8]} 39... Qg7+ {[%clk 0:00:06.9]} 40. Qxg7+ {[%clk 0:02:24.8]}
40... Rxg7+ {[%clk 0:00:08.4]} 41. Kh2 {[%clk 0:02:23.9]} 41... Rf7 {[%clk
0:00:09.6]} 42. Kg3 {[%clk 0:02:05.9]} 42... Nd5 {[%clk 0:00:10.1]} 43. Rh2
{[%clk 0:02:06.5]} 43... Nb4 {[%clk 0:00:08.3]} 44. Be4 {[%clk 0:02:06.8]} 44...
Rc7 {[%clk 0:00:06.7]} 45. a3 {[%clk 0:02:06.1]} 45... c2 {[%clk 0:00:07.5]} 46.
Bxc2 {[%clk 0:02:06.7]} 46... Nxc2 {[%clk 0:00:09]} 47. Rxh5 {[%clk 0:02:08]}
47... Nxd4 {[%clk 0:00:09.4]} 48. Rh8+ {[%clk 0:02:08.5]} 48... Ke7 {[%clk
0:00:10.1]} 49. Ra8 {[%clk 0:02:10.4]} 49... Nxb3 {[%clk 0:00:07.4]} 50. Rxa6
{[%clk 0:02:11]} 50... Nd4 {[%clk 0:00:05.8]} 51. Kf4 {[%clk 0:02:10.2]} 51...
Nc6 {[%clk 0:00:06.4]} 52. Rb6 {[%clk 0:02:09.6]} 52... Kd7 {[%clk 0:00:07.5]}
53. Rxb5 {[%clk 0:02:10.3]} 53... Ra7 {[%clk 0:00:08.7]} 54. Kg5 {[%clk
0:02:09.2]} 54... Rxa3 {[%clk 0:00:08.2]} 55. Rb7+ {[%clk 0:02:10.3]} 55... Kc8
{[%clk 0:00:08.5]} 56. Rh7 {[%clk 0:02:11.4]} 56... Rf3 {[%clk 0:00:08]} 57. Rh6
{[%clk 0:01:59.6]} 57... Rf5+ {[%clk 0:00:07.7]} 58. Kg6 {[%clk 0:01:56.6]}
58... Nxe5+ {[%clk 0:00:07.7]} 59. Kg7 {[%clk 0:01:57.9]} 59... Kd7 {[%clk
0:00:08.4]} 60. Rh1 {[%clk 0:01:58]} 60... Nc6 {[%clk 0:00:08.3]} 61. Re1 {[%clk
0:01:57.4]} 61... Ke7 {[%clk 0:00:07.8]} 62. Kg6 {[%clk 0:01:58.7]} 62... Ne5+
{[%clk 0:00:08.2]} 63. Kg7 {[%clk 0:01:59.1]} 63... Nd7 {[%clk 0:00:09.3]} 64.
Kg6 {[%clk 0:02:00.2]} 64... Ne5+ {[%clk 0:00:10.5]} 65. Kg7 {[%clk 0:02:01.6]}
65... Nc6 {[%clk 0:00:11.2]} 66. Kg6 {[%clk 0:02:02.9]} 66... Kd6 {[%clk
0:00:12.2]} 67. Rd1+ {[%clk 0:02:03.3]} 67... Rd5 {[%clk 0:00:13.3]} 68. Re1
{[%clk 0:02:04.8]} 68... e5 {[%clk 0:00:14.2]} 69. Kf5 {[%clk 0:02:05.6]} 69...
Nd4+ {[%clk 0:00:14.3]} 70. Kf6 {[%clk 0:02:07]} 70... Nf3 {[%clk 0:00:13.7]}
71. Re3 {[%clk 0:02:08.1]} 71... Nd2 {[%clk 0:00:14.6]} 72. Re2 {[%clk
0:02:08.9]} 72... e4 {[%clk 0:00:15.3]} 73. Re3 {[%clk 0:02:08.6]} 73... Kc5
{[%clk 0:00:14.6]} 74. Re2 {[%clk 0:02:08.9]} 74... Kc4 {[%clk 0:00:14.6]} 75.
Re3 {[%clk 0:02:08.3]} 75... Kd4 {[%clk 0:00:14.8]} 76. Re2 {[%clk 0:02:09.8]}
76... Kd3 {[%clk 0:00:15.5]} 77. Re1 {[%clk 0:02:10.8]} 77... e3 {[%clk
0:00:16.7]} 78. Ke6 {[%clk 0:02:11.8]} 78... Rd8 {[%clk 0:00:17]} 0-1

[Event "*** Titled Tuesday Blitz"]
[Site "Chess.com"]
[Date "2018.06.05"]
[Round "6"]
[White "gkchesstiger"]
[Black "1stSecond"]
[Result "1/2-1/2"]
[WhiteElo "2782"]
[BlackElo "2612"]
[TimeControl "180+2"]
[EndTime "14:29:31 PDT"]
[Termination "Game drawn by repetition"]

1. d4 {[%clk 0:03:01.9]} 1... Nf6 {[%clk 0:03:00.9]} 2. Nf3 {[%clk 0:03:01.8]}
2... e6 {[%clk 0:03:00.9]} 3. Bf4 {[%clk 0:03:02.5]} 3... b6 {[%clk 0:03:01.4]}
4. e3 {[%clk 0:03:03]} 4... Bb7 {[%clk 0:03:02.7]} 5. Nbd2 {[%clk 0:03:02.6]}
5... Be7 {[%clk 0:02:58]} 6. h3 {[%clk 0:03:03.8]} 6... O-O {[%clk 0:02:54.3]}
7. Bd3 {[%clk 0:03:04]} 7... d5 {[%clk 0:02:52.8]} 8. Ne5 {[%clk 0:03:01.1]}
8... c5 {[%clk 0:02:44.6]} 9. c3 {[%clk 0:03:01.4]} 9... Nc6 {[%clk 0:02:40.4]}
10. a3 {[%clk 0:02:53.3]} 10... Rc8 {[%clk 0:02:36.7]} 11. O-O {[%clk
0:02:52.9]} 11... Bd6 {[%clk 0:02:24.2]} 12. Qe2 {[%clk 0:02:45]} 12... Qc7
{[%clk 0:02:18.4]} 13. Nxc6 {[%clk 0:02:43.9]} 13... Bxc6 {[%clk 0:02:15.1]} 14.
Bxd6 {[%clk 0:02:44.8]} 14... Qxd6 {[%clk 0:02:16.1]} 15. f4 {[%clk 0:02:45.7]}
15... Ne4 {[%clk 0:01:26.7]} 16. Bxe4 {[%clk 0:02:42.9]} 16... dxe4 {[%clk
0:01:28.6]} 17. Nc4 {[%clk 0:02:28.9]} 17... Qd5 {[%clk 0:01:20.5]} 18. Ne5
{[%clk 0:02:30]} 18... cxd4 {[%clk 0:01:14.8]} 19. Nxc6 {[%clk 0:01:40]} 19...
Rxc6 {[%clk 0:01:15.4]} 20. exd4 {[%clk 0:01:40.7]} 20... b5 {[%clk 0:01:16.9]}
21. Rfe1 {[%clk 0:01:22.5]} 21... f5 {[%clk 0:01:17.2]} 22. Kh2 {[%clk
0:01:12.6]} 22... a5 {[%clk 0:01:17.7]} 23. Qe3 {[%clk 0:01:07]} 23... Rb8
{[%clk 0:01:00.8]} 24. Rec1 {[%clk 0:01:02.5]} 24... h6 {[%clk 0:01:01.7]} 25.
Rc2 {[%clk 0:00:57.4]} 25... Kh7 {[%clk 0:01:02.5]} 26. Rac1 {[%clk 0:00:57.7]}
26... Qb3 {[%clk 0:00:58.4]} 27. Qe2 {[%clk 0:00:55.8]} 27... Rd8 {[%clk
0:00:58.3]} 28. Rd2 {[%clk 0:00:53.5]} 28... Rd5 {[%clk 0:00:47.2]} 29. h4
{[%clk 0:00:53.8]} 29... Rc4 {[%clk 0:00:43.5]} 30. h5 {[%clk 0:00:53.2]} 30...
b4 {[%clk 0:00:43.8]} 31. axb4 {[%clk 0:00:53.3]} 31... axb4 {[%clk 0:00:44.8]}
32. Qe3 {[%clk 0:00:49.4]} 32... bxc3 {[%clk 0:00:20.3]} 33. bxc3 {[%clk
0:00:50.3]} 33... Qb5 {[%clk 0:00:20.7]} 34. Qg3 {[%clk 0:00:50.2]} 34... Qe8
{[%clk 0:00:22.1]} 35. Qh3 {[%clk 0:00:45.2]} 35... Rb5 {[%clk 0:00:18.8]} 36.
Ra2 {[%clk 0:00:38]} 36... Rb3 {[%clk 0:00:19.7]} 37. d5 {[%clk 0:00:32.9]}
37... e3 {[%clk 0:00:14.1]} 38. d6 {[%clk 0:00:25]} 38... Rxf4 {[%clk
0:00:08.4]} 39. Ra7 {[%clk 0:00:25.4]} 39... e2 {[%clk 0:00:05.1]} 40. Re7
{[%clk 0:00:25.4]} 40... Qf8 {[%clk 0:00:04.8]} 41. Qg3 {[%clk 0:00:26.4]} 41...
Rg4 {[%clk 0:00:05.7]} 42. Qe5 {[%clk 0:00:24.7]} 42... Rb2 {[%clk 0:00:05.6]}
43. Re1 {[%clk 0:00:24.5]} 43... Rd2 {[%clk 0:00:04.8]} 44. Qxe6 {[%clk
0:00:23.3]} 44... Re4 {[%clk 0:00:03.1]} 45. Qg6+ {[%clk 0:00:24.2]} 45... Kh8
{[%clk 0:00:04.1]} 46. Rxe4 {[%clk 0:00:14]} 46... fxe4 {[%clk 0:00:06]} 47.
Qxe4 {[%clk 0:00:12.6]} 47... Qxd6+ {[%clk 0:00:07]} 48. Kh1 {[%clk 0:00:12.8]}
48... Qg3 {[%clk 0:00:05.6]} 49. Qe8+ {[%clk 0:00:13.5]} 49... Kh7 {[%clk
0:00:07.1]} 50. Qe4+ {[%clk 0:00:14.8]} 50... Kh8 {[%clk 0:00:06.8]} 51. Qe8+
{[%clk 0:00:15.9]} 51... Kh7 {[%clk 0:00:08.2]} 52. Qe4+ {[%clk 0:00:16.8]}
52... Kh8 {[%clk 0:00:05.8]} 1/2-1/2